fUSD/lending_fUSD_20250820
["ID","MTS","AMOUNT","RATE_DAILY","PERIOD"]
[380349518,1755700168520,-400.0,0.00030684,120]
[380349519,1755700168561,-400.0,0.00030684,120]
[380349520,1755700168603,-435.8,0.00030684,120]
[380349521,1755700168646,-400.0,0.00030684,120]
[380349522,1755700168685,-400.0,0.00030684,120]
[380349523,1755700168727,-400.0,0.00030684,120]
[380349524,1755700168765,-400.0,0.00030684,120]
[380349525,1755700168806,-400.0,0.00030684,120]
[380349526,1755700168846,-1197.64,0.00030684,120]
[380349527,1755700168885,-1108.87,0.00030684,120]
[380349528,1755700168921,-1648.39,0.00030684,120]
[380349529,1755700168960,-400.0,0.00030684,120]
[380349530,1755700168997,-400.0,0.00030684,120]
[380349531,1755700169039,-400.0,0.00030684,120]
[380349532,1755700169078,-875.02,0.00030684,120]
[380349533,1755700169118,-426.08,0.00030684,120]
[380349534,1755700169155,-967.35,0.00030684,120]
[380349535,1755700169194,-400.0,0.00030684,120]
[380349536,1755700169234,-400.0,0.00030684,120]
[380349537,1755700169272,-1214.08,0.00030684,120]
[380349538,1755700169311,-461.66,0.00030684,120]
[380349539,1755700169347,-400.0,0.00030684,120]
[380349540,1755700169387,-400.0,0.00030684,120]
[380349541,1755700169429,-1010.73,0.00030684,120]
[380349542,1755700169474,-1077.99,0.00030684,120]
[380349543,1755700169516,-1289.57,0.00030684,120]
[380349544,1755700169559,-479.1,0.00030684,120]
[380349545,1755700169600,-400.0,0.00030684,120]
[380349546,1755700169641,-400.0,0.00030684,120]
[380349547,1755700169680,-486.81695167,0.00030684,120]
[380349548,1755700169721,-400.0,0.00030684,120]
[380349549,1755700169759,-566.23,0.00030684,120]
[380349550,1755700169801,-400.0,0.00030684,120]
[380349551,1755700169844,-400.0,0.00030684,120]
[380349552,1755700169884,-400.0,0.00030684,120]
[380349553,1755700169924,-400.0,0.00030684,120]
[380349554,1755700169964,-400.0,0.00030684,120]
[380349555,1755700170003,-1358.23,0.00030684,120]
[380349556,1755700170043,-400.0,0.00030684,120]
[380349557,1755700170083,-1279.37,0.00030684,120]
[380349558,1755700170332,-400.0,0.00030684,120]
[380349559,1755700170373,-400.0,0.00030684,120]
[380349560,1755700170415,-400.0,0.00030684,120]
[380349561,1755700170455,-1064.96,0.00030684,120]
[380349562,1755700170496,-400.0,0.00030684,120]
[380349563,1755700170536,-522.5,0.00030684,120]
[380349564,1755700170576,-400.0,0.00030684,120]
[380349565,1755700170615,-400.0,0.00030684,120]
[380349566,1755700170653,-610.31,0.00030684,120]
[380349567,1755700170693,-400.0,0.00030684,120]
[380349568,1755700170729,-544.65,0.00030684,120]
[380349569,1755700170765,-400.0,0.00030684,120]
[380349570,1755700170804,-400.0,0.00030684,120]
[380349571,1755700170839,-1184.16,0.00030684,120]
[380349572,1755700170874,-400.0,0.00030684,120]
[380349573,1755700170912,-400.0,0.00030684,120]
[380349574,1755700170949,-1865.5,0.00030684,120]
[380349575,1755700170986,-1057.26,0.00030684,120]
[380349576,1755700171023,-400.0,0.00030684,120]
[380349577,1755700171060,-400.0,0.00030684,120]
[380349578,1755700171098,-400.0,0.00030684,120]
[380349579,1755700171140,-1397.58,0.00030684,120]
[380349580,1755700171183,-400.0,0.00030684,120]
[380349581,1755700171233,-1290.51,0.00030684,120]
[380349582,1755700171274,-400.0,0.00030684,120]
[380349583,1755700171315,-400.0,0.00030684,120]
[380349584,1755700171355,-400.0,0.00030684,120]
[380349585,1755700171396,-461.81,0.00030684,120]
[380349586,1755700171438,-955.09,0.00030684,120]
[380349587,1755700171481,-1071.54,0.00030684,120]
[380349588,1755700171525,-613.28,0.00030684,120]
[380349589,1755700171566,-962.12,0.00030684,120]
[380349590,1755700171605,-400.0,0.00030684,120]
[380349591,1755700171646,-400.0,0.00030684,120]
[380349592,1755700171686,-926.88,0.00030684,120]
[380349593,1755700171725,-564.13,0.00030684,120]
[380349594,1755700171766,-400.0,0.00030684,120]
[380349595,1755700171807,-400.0,0.00030684,120]
[380349596,1755700171848,-400.0,0.00030684,120]
[380349597,1755700171892,-400.0,0.00030684,120]
[380349598,1755700171948,-400.0,0.00030684,120]
[380349599,1755700171998,-474.75,0.00030684,120]
[380349600,1755700172036,-400.0,0.00030684,120]
[380349601,1755700172077,-854.28,0.00030684,120]
[380349602,1755700172120,-400.0,0.00030684,120]
[380349603,1755700172166,-1505.34,0.00030684,120]
[380349604,1755700172211,-400.0,0.00030684,120]
[380349605,1755700172254,-400.0,0.00030684,120]
[380349606,1755700172296,-1067.15,0.00030684,120]
[380349607,1755700172338,-1085.49,0.00030684,120]
[380349608,1755700172381,-735.12,0.00030684,120]
[380349609,1755700172421,-400.0,0.00030684,120]
[380349610,1755700172462,-403.21,0.00030684,120]
[380349611,1755700172501,-1704.36,0.00030684,120]
[380349612,1755700172540,-400.0,0.00030684,120]
[380349613,1755700172578,-704.27,0.00030684,120]
[380349614,1755700172615,-473.28,0.00030684,120]
[380349615,1755700172653,-312.1112407,0.00030684,120]
[380349616,1755700172693,-400.0,0.00030684,120]
[380349617,1755700172729,-400.0,0.00030684,120]
[380349618,1755700172764,-400.0,0.00030684,120]
[380349619,1755700172801,-1690.81,0.00030684,120]
[380349620,1755700172838,-1021.71,0.00030684,120]
[380349621,1755700172873,-400.0,0.00030684,120]
[380349622,1755700172908,-946.32,0.00030684,120]
[380349623,1755700172944,-400.0,0.00030684,120]
[380349624,1755700172980,-1480.61,0.00030684,120]
[380349625,1755700173017,-981.64,0.00030684,120]
[380349626,1755700173056,-400.0,0.00030684,120]
[380349627,1755700173098,-400.0,0.00030684,120]
[380349628,1755700173140,-774.66,0.00030684,120]
[380349629,1755700173181,-400.0,0.00030684,120]
[380349630,1755700173226,-1124.14,0.00030684,120]
[380349631,1755700173264,-400.0,0.00030684,120]
[380349632,1755700173301,-400.0,0.00030684,120]
[380349633,1755700173338,-271.58194957,0.00030684,120]
[380349634,1755700173540,-478.8,0.00030684,120]
[380349635,1755700173583,-961.98,0.00030684,120]
[380349636,1755700173624,-1077.76,0.00030684,120]
[380349637,1755700173664,-400.0,0.00030684,120]
[380349638,1755700173704,-952.02,0.00030684,120]
[380349639,1755700173743,-400.0,0.00030684,120]
[380349640,1755700173787,-483.64,0.00030684,120]
[380349641,1755700173825,-719.84,0.00030684,120]
[380349642,1755700173866,-528.91,0.00030684,120]
[380349643,1755700173903,-400.0,0.00030684,120]
[380349644,1755700173943,-590.25,0.00030684,120]
[380349645,1755700173981,-1343.1,0.00030684,120]
[380349646,1755700174019,-400.0,0.00030684,120]
[380349647,1755700174060,-1064.03,0.00030684,120]
[380349648,1755700174101,-400.0,0.00030684,120]
[380349649,1755700174144,-1277.58,0.00030684,120]
[380349650,1755700174190,-400.0,0.00030684,120]
[380349651,1755700174234,-400.0,0.00030684,120]
[380349652,1755700174277,-400.0,0.00030684,120]
[380349653,1755700174319,-400.0,0.00030684,120]
[380349654,1755700174359,-573.83,0.00030684,120]
[380349655,1755700174399,-400.0,0.00030684,120]
[380349656,1755700174439,-400.0,0.00030684,120]
[380349657,1755700174477,-400.0,0.00030684,120]
[380349658,1755700174517,-400.0,0.00030684,120]
[380349659,1755700174559,-1767.27,0.00030684,120]
[380349660,1755700174601,-471.68,0.00030684,120]
[380349661,1755700174639,-527.7,0.00030684,120]
[380349662,1755700174680,-1386.55,0.00030684,120]
[380349663,1755700174722,-1620.21,0.00030684,120]
[380349664,1755700174765,-665.47,0.00030684,120]
[380349665,1755700174809,-1502.1,0.00030684,120]
[380349666,1755700174851,-1665.3,0.00030684,120]
[380349667,1755700174904,-914.06,0.00030684,120]
[380349668,1755700174954,-2477.56,0.00030684,120]
[380349669,1755700175004,-2521.95,0.00030684,120]
[380349670,1755700175056,-450.21,0.00030684,120]
[380349671,1755700175104,-1424.59,0.00030684,120]
[380349672,1755700175159,-400.0,0.00030684,120]
[380349673,1755700175203,-1834.51,0.00030684,120]
[380349674,1755700175247,-1508.85,0.00030684,120]
[380349675,1755700175288,-400.0,0.00030684,120]
[380349676,1755700175330,-1011.18,0.00030684,120]
[380349677,1755700175374,-272.09182469,0.00030684,120]
[380349678,1755700175418,-1428.7,0.00030684,120]
[380349679,1755700175461,-400.0,0.00030684,120]
[380349680,1755700175507,-532.57,0.00030684,120]
[380349681,1755700175555,-400.0,0.00030684,120]
[380349682,1755700175600,-400.0,0.00030684,120]
[380349683,1755700175640,-2542.89,0.00030684,120]
[380349684,1755700175679,-400.0,0.00030684,120]
[380349685,1755700175720,-1396.22,0.00030684,120]
[380349686,1755700175758,-798.05,0.00030684,120]
[380349687,1755700175801,-400.0,0.00030684,120]
[380349688,1755700175841,-400.0,0.00030684,120]
[380349689,1755700175881,-450.82,0.00030684,120]
[380349690,1755700175923,-487.13,0.00030684,120]
[380349691,1755700175963,-1714.26,0.00030684,120]
[380349692,1755700176003,-472.72,0.00030684,120]
[380349693,1755700176046,-1793.54,0.00030684,120]
[380349694,1755700176092,-1113.72,0.00030684,120]
[380349695,1755700176136,-400.0,0.00030684,120]
[380349696,1755700176185,-1341.07,0.00030684,120]
[380349697,1755700176231,-1256.84,0.00030684,120]
[380349698,1755700176276,-400.0,0.00030684,120]
[380349699,1755700176322,-400.0,0.00030684,120]
[380349700,1755700176365,-591.81,0.00030684,120]
[380349701,1755700176409,-412.33,0.00030684,120]
[380349702,1755700176453,-1724.35,0.00030684,120]
[380349703,1755700176496,-400.0,0.00030684,120]
[380349704,1755700176539,-400.0,0.00030684,120]
[380349705,1755700176579,-1639.83,0.00030684,120]
[380349706,1755700176626,-1137.34,0.00030684,120]
[380349707,1755700176670,-400.0,0.00030684,120]
[380349708,1755700176720,-400.0,0.00030684,120]
[380349709,1755700176766,-1176.75,0.00030684,120]
[380349710,1755700176815,-845.89,0.00030684,120]
[380349711,1755700176865,-1695.35,0.00030684,120]
[380349712,1755700176922,-400.0,0.00030684,120]
[380349713,1755700176968,-400.0,0.00030684,120]
[380349714,1755700177012,-1187.13,0.00030684,120]
[380349715,1755700177056,-400.0,0.00030684,120]
[380349716,1755700177107,-1054.83,0.00030684,120]
[380349717,1755700177160,-1548.45,0.00030684,120]
[380349718,1755700177212,-1355.73,0.00030684,120]
[380349719,1755700177260,-580.51,0.00030684,120]
[380349720,1755700177305,-866.3,0.00030684,120]
[380349721,1755700177350,-408.67811551,0.00030684,120]
[380349722,1755700177395,-400.0,0.00030684,120]
[380349723,1755700177444,-400.0,0.00030684,120]
[380349724,1755700177485,-684.86,0.00030684,60]
[380349725,1755700177525,-1531.19,0.00030684,120]
[380349726,1755700177562,-585.5,0.00030684,120]
[380349727,1755700178182,-400.0,0.00030684,120]
[380349728,1755700178228,-400.0,0.00030684,120]
[380349729,1755700178272,-579.11,0.00030684,120]
[380349730,1755700178315,-400.0,0.00030684,120]
[380349731,1755700178357,-400.0,0.00030684,120]
[380349732,1755700178398,-400.0,0.00030684,120]
[380349733,1755700178440,-400.0,0.00030684,120]
[380349734,1755700178481,-521.43,0.00030684,120]
[380349735,1755700178522,-681.15,0.00030684,120]
[380349736,1755700178564,-871.73,0.00030684,120]
[380349737,1755700178605,-400.0,0.00030684,120]
[380349738,1755700178646,-400.0,0.00030684,120]
[380349739,1755700178689,-573.72,0.00030684,120]
[380349740,1755700178732,-1619.77,0.00030684,120]
[380349741,1755700178774,-400.0,0.00030684,120]
[380349742,1755700178824,-1731.51,0.00030684,120]
[380349743,1755700178863,-400.0,0.00030684,120]
[380349744,1755700178899,-400.0,0.00030684,120]
[380349745,1755700178936,-400.0,0.00030684,120]
[380349746,1755700178976,-400.0,0.00030684,120]
[380349747,1755700179014,-475.88,0.00030684,120]
[380349748,1755700179053,-400.0,0.00030684,120]
[380349749,1755700179092,-400.0,0.00030684,120]
[380349750,1755700179137,-450.59,0.00030684,120]
[380349751,1755700179182,-659.18,0.00030684,120]
[380349752,1755700179230,-400.0,0.00030684,120]
[380349753,1755700179271,-400.0,0.00030684,120]
[380349754,1755700179311,-405.86,0.00030684,120]
[380349755,1755700179351,-796.64,0.00030684,120]
[380349756,1755700179393,-400.0,0.00030684,120]
[380349757,1755700179433,-837.07,0.00030684,120]
[380349758,1755700179478,-509.03,0.00030684,120]
[380349759,1755700179515,-400.0,0.00030684,120]
[380349760,1755700179554,-1362.23,0.00030684,120]
[380349761,1755700179593,-740.39,0.00030684,120]
[380349762,1755700179632,-400.0,0.00030684,120]
[380349763,1755700179668,-938.2,0.00030684,120]
[380349764,1755700179706,-1011.08,0.00030684,120]
[380349765,1755700179744,-1012.21,0.00030684,120]
[380349766,1755700179782,-400.0,0.00030684,120]
[380349767,1755700179822,-400.0,0.00030684,120]
[380349768,1755700179860,-400.0,0.00030684,120]
[380349769,1755700179902,-172.50649255,0.00030684,120]
[380349770,1755700179943,-400.0,0.00030684,120]
[380349771,1755700179980,-1496.56,0.00030684,120]
[380349772,1755700180018,-400.0,0.00030684,120]
[380349773,1755700180056,-400.0,0.00030684,120]
[380349774,1755700180097,-400.0,0.00030684,120]
[380349775,1755700180137,-400.0,0.00030684,120]
[380349776,1755700180178,-400.0,0.00030684,120]
[380349777,1755700180221,-1167.63,0.00030684,120]
[380349778,1755700180261,-953.47,0.00030684,120]
[380349779,1755700180303,-1697.56,0.00030684,120]
[380349780,1755700180347,-400.0,0.00030684,120]
[380349781,1755700180391,-1110.02,0.00030684,120]
[380349782,1755700180433,-400.0,0.00030684,120]
[380349783,1755700180476,-1286.09,0.00030684,120]
[380349784,1755700180518,-400.0,0.00030684,120]
[380349785,1755700180558,-400.0,0.00030684,120]
[380349786,1755700180598,-1255.84,0.00030684,120]
[380349787,1755700180637,-400.0,0.00030684,120]
[380349788,1755700180676,-781.56,0.00030684,120]
[380349789,1755700180716,-893.36,0.00030684,120]
[380349790,1755700180756,-400.0,0.00030684,120]
[380349791,1755700180801,-400.0,0.00030684,120]
[380349792,1755700180837,-941.62,0.00030684,120]
[380349793,1755700180873,-400.0,0.00030684,120]
[380349794,1755700180909,-510.19,0.00030684,120]
[380349795,1755700180947,-429.33,0.00030684,120]
[380349796,1755700180984,-400.0,0.00030684,120]
[380349797,1755700181023,-1233.26,0.00030684,120]
[380349798,1755700181062,-1077.11,0.00030684,120]
[380349799,1755700181101,-203.34466717,0.00030684,120]
[380349800,1755700181143,-433.19,0.00030684,120]
[380349801,1755700181183,-2504.96,0.00030684,120]
[380349802,1755700181226,-999.26,0.00030684,120]
[380349803,1755700181267,-1510.54,0.00030684,120]
[380349804,1755700181414,-796.52,0.00030684,120]
[380349805,1755700181455,-400.0,0.00030684,120]
[380349806,1755700181493,-400.0,0.00030684,120]
[380349807,1755700181530,-1421.92,0.00030684,120]
[380349808,1755700181564,-704.81,0.00030684,120]
[380349809,1755700181598,-187.12327659,0.00030684,120]
[380349810,1755700181632,-400.0,0.00030684,120]
[380349811,1755700181664,-400.0,0.00030684,120]
[380349812,1755700181700,-400.0,0.00030684,120]
[380349813,1755700181733,-1215.57,0.00030684,120]
[380349814,1755700181768,-400.0,0.00030684,120]
[380349815,1755700181805,-400.0,0.00030684,120]
[380349816,1755700181841,-786.79,0.00030684,120]
[380349817,1755700181876,-535.63,0.00030684,120]
[380349818,1755700181912,-400.0,0.00030684,120]
[380349819,1755700181951,-400.0,0.00030684,120]
[380349820,1755700181988,-400.0,0.00030684,120]
[380349821,1755700182024,-803.26,0.00030684,120]
[380349822,1755700182060,-1270.29,0.00030684,120]
[380349823,1755700182100,-400.0,0.00030684,120]
[380349824,1755700182144,-400.82,0.00030684,120]
[380349825,1755700182186,-1196.92,0.00030684,120]
[380349826,1755700182233,-400.0,0.00030684,120]
[380349827,1755700182274,-400.0,0.00030684,120]
[380349828,1755700182315,-400.0,0.00030684,120]
[380349829,1755700182354,-1179.75,0.00030684,120]
[380349830,1755700182392,-510.1,0.00030684,120]
[380349831,1755700182429,-400.0,0.00030684,120]
[380349832,1755700182466,-400.0,0.00030684,120]
[380349833,1755700182503,-400.0,0.00030684,120]
[380349834,1755700182538,-959.51,0.00030684,120]
[380349835,1755700182573,-555.31,0.00030684,120]
[380349836,1755700182607,-400.0,0.00030684,120]
[380349837,1755700182641,-400.0,0.00030684,120]
[380349838,1755700182676,-1220.88,0.00030684,120]
[380349839,1755700182710,-400.0,0.00030684,120]
[380349840,1755700182745,-326.00319132,0.00030684,120]
[380349841,1755700182779,-400.0,0.00030684,120]
[380349842,1755700182817,-400.0,0.00030684,120]
[380349843,1755700182852,-400.0,0.00030684,120]
[380349844,1755700182889,-400.0,0.00030684,120]
[380349845,1755700182927,-1496.83,0.00030684,120]
[380349846,1755700182967,-400.0,0.00030684,120]
[380349847,1755700183005,-400.0,0.00030684,120]
[380349848,1755700183045,-1772.07,0.00030684,120]
[380349849,1755700183084,-921.14,0.00030684,120]
[380349850,1755700183125,-573.52,0.00030684,120]
[380349851,1755700183163,-400.0,0.00030684,120]
[380349852,1755700183202,-400.0,0.00030684,120]
[380349853,1755700183240,-1625.68,0.00030684,120]
[380349854,1755700183278,-1140.28,0.00030684,120]
[380349855,1755700183315,-400.0,0.00030684,120]
[380349856,1755700183351,-400.0,0.00030684,120]
[380349857,1755700183391,-400.0,0.00030684,120]
[380349858,1755700183432,-400.0,0.00030684,120]
[380349859,1755700183475,-976.21,0.00030684,120]
[380349860,1755700183516,-400.0,0.00030684,120]
[380349861,1755700183555,-400.0,0.00030684,120]
[380349862,1755700183594,-400.0,0.00030684,120]
[380349863,1755700183631,-501.73,0.00030684,120]
[380349864,1755700183668,-400.0,0.00030684,120]
[380349865,1755700183705,-502.41,0.00030684,120]
[380349866,1755700183741,-474.50051698,0.00030684,120]
[380349867,1755700183777,-400.0,0.00030684,120]
[380349868,1755700183815,-400.0,0.00030684,120]
[380349869,1755700183850,-400.0,0.00030684,120]
[380349870,1755700183885,-400.0,0.00030684,120]
[380349871,1755700183921,-400.0,0.00030684,120]
[380349872,1755700183956,-400.0,0.00030684,120]
[380349873,1755700183993,-400.0,0.00030684,120]
[380349874,1755700184030,-400.0,0.00030684,120]
[380349875,1755700184068,-400.0,0.00030684,120]
[380349876,1755700184108,-400.0,0.00030684,120]
[380349877,1755700184149,-400.0,0.00030684,120]
[380349878,1755700184190,-305.23629177,0.00030684,120]
[380349879,1755700184235,-163.88,0.00030684,120]
[380349880,1755700184276,-903.31,0.00030684,120]
[380349881,1755700184318,-400.0,0.00030684,120]
[380349882,1755700184360,-184.23798819,0.00030684,120]
[380349883,1755700184404,-573.62,0.00030684,120]
[380349884,1755700184446,-1141.69,0.00030684,120]
[380349885,1755700184486,-158.96,0.00030684,120]
[380349886,1755700184525,-400.0,0.00030684,120]
[380349887,1755700184564,-300.0,0.00030684,120]
[380349888,1755700184603,-1225.46,0.00030684,120]
[380349889,1755700184642,-276.39,0.00030684,120]
[380349890,1755700184684,-400.0,0.00030684,120]
[380349891,1755700184726,-192.99,0.00030684,120]
[380349892,1755700184766,-458.62,0.00030684,120]
[380349893,1755700184806,-761.89,0.00030684,120]
[380349894,1755700184844,-319.69,0.00030684,120]
[380349895,1755700184883,-153.7,0.00030684,120]
[380349896,1755700184921,-400.0,0.00030684,120]
[380349897,1755700184961,-261.22,0.00030684,120]
[380349898,1755700185001,-400.0,0.00030684,120]
[380349899,1755700185045,-427.94,0.00030684,120]
[380349900,1755700185088,-156.59,0.00030684,120]
[380349901,1755700185134,-329.18,0.00030684,120]
[380349902,1755700185175,-419.42,0.00030684,120]
[380349903,1755700185215,-351.77,0.00030684,120]
[380349904,1755700185252,-931.87,0.00030684,120]
[380349905,1755700185292,-342.67,0.00030684,120]
[380349906,1755700185332,-400.0,0.00030684,120]
[380349907,1755700185371,-400.0,0.00030684,120]
[380349908,1755700185408,-166.22,0.00030684,120]
[380349909,1755700185446,-400.0,0.00030684,120]
[380349910,1755700185486,-400.0,0.00030684,120]
[380349911,1755700185525,-209.64,0.00030684,120]
[380349912,1755700185563,-400.0,0.00030684,120]
[380349913,1755700185601,-400.0,0.00030684,120]
[380349914,1755700185639,-400.0,0.00030684,120]
[380349915,1755700185678,-251.32,0.00030684,120]
[380349916,1755700185716,-400.0,0.00030684,120]
[380349917,1755700185754,-400.0,0.00030684,120]
[380349918,1755700185793,-204.19,0.00030684,120]
[380349919,1755700185830,-400.0,0.00030684,120]
[380349920,1755700185867,-391.94,0.00030684,120]
[380349921,1755700186075,-216.51,0.00030684,120]
[380349922,1755700186119,-400.0,0.00030684,120]
[380349923,1755700186164,-400.0,0.00030684,120]
[380349924,1755700186208,-400.0,0.00030684,120]
[380349925,1755700186253,-400.0,0.00030684,120]
[380349926,1755700186298,-293.73,0.00030684,120]
[380349927,1755700186347,-304.06,0.00030684,120]
[380349928,1755700186388,-159.06,0.00030684,120]
[380349929,1755700186427,-193.08,0.00030684,120]
[380349930,1755700186468,-400.0,0.00030684,120]
[380349931,1755700186509,-400.0,0.00030684,120]
[380349932,1755700186550,-326.1,0.00030684,120]
[380349933,1755700186590,-243.59,0.00030684,120]
[380349934,1755700186629,-400.0,0.00030684,120]
[380349935,1755700186666,-400.0,0.00030684,120]
[380349936,1755700186704,-283.27,0.00030684,120]
[380349937,1755700186743,-1169.7,0.00030684,120]
[380349938,1755700186782,-4533.1,0.00030684,120]
[380349939,1755700186823,-914.88,0.00030684,120]
[380349940,1755700186860,-400.0,0.00030684,120]
[380349941,1755700186897,-400.0,0.00030684,120]
[380349942,1755700186936,-1282.63,0.00030684,120]
[380349943,1755700186975,-400.0,0.00030684,120]
[380349944,1755700187015,-470.09,0.00030684,120]
[380349945,1755700187058,-1249.36,0.00030684,120]
[380349946,1755700187096,-180.96,0.00030684,120]
[380349947,1755700187137,-2141.8,0.00030684,120]
[380349948,1755700187178,-400.0,0.00030684,120]
[380349949,1755700187219,-400.0,0.00030684,120]
[380349950,1755700187259,-400.0,0.00030684,120]
[380349951,1755700187298,-1366.18,0.00030684,120]
[380349952,1755700187335,-1045.46,0.00030684,120]
[380349953,1755700187374,-400.0,0.00030684,120]
[380349954,1755700187412,-1386.91,0.00030684,120]
[380349955,1755700187447,-400.0,0.00030684,120]
[380349956,1755700187488,-155.38,0.00030684,120]
[380349957,1755700187523,-400.0,0.00030684,120]
[380349958,1755700187559,-4369.67,0.00030684,118]
[380349959,1755700187593,-887.06,0.00030684,120]
[380349960,1755700187630,-3084.34,0.00030684,120]
[380349961,1755700187667,-400.0,0.00030684,120]
[380349962,1755700187706,-3155.56,0.00030684,120]
[380349963,1755700187745,-400.0,0.00030684,120]
[380349964,1755700187781,-375.67,0.00030684,120]
[380349965,1755700187823,-411.95,0.00030684,120]
[380349966,1755700187861,-400.0,0.00030684,120]
[380349967,1755700187899,-1366.0,0.00030684,120]
[380349968,1755700187936,-400.0,0.00030684,120]
[380349969,1755700187974,-458.79,0.00030684,120]
[380349970,1755700188012,-400.0,0.00030684,120]
[380349971,1755700188054,-1989.14,0.00030684,120]
[380349972,1755700188097,-2031.89,0.00030684,120]
[380349973,1755700188141,-4840.69,0.00030684,120]
[380349974,1755700188185,-400.0,0.00030684,120]
[380349975,1755700188232,-1802.56,0.00030684,120]
[380349976,1755700188273,-400.0,0.00030684,120]
[380349977,1755700188315,-232.45,0.00030684,120]
[380349978,1755700188356,-5946.94,0.00030684,120]
[380349979,1755700188397,-1561.46,0.00030684,120]
[380349980,1755700188437,-400.0,0.00030684,120]
[380349981,1755700188477,-400.0,0.00030684,120]
[380349982,1755700188516,-1674.47,0.00030684,120]
[380349983,1755700188556,-2996.41,0.00030684,120]
[380349984,1755700188598,-1105.06,0.00030684,120]
[380349985,1755700188638,-1254.33,0.00030684,120]
[380349986,1755700188679,-400.0,0.00030684,120]
[380349987,1755700188720,-743.26,0.00030684,120]
[380349988,1755700188764,-1106.69,0.00030684,120]
[380349989,1755700188801,-400.0,0.00030684,120]
[380349990,1755700188839,-460.10144868,0.00030684,120]
[380349991,1755700188880,-1238.97,0.00030684,120]
[380349992,1755700188918,-3443.6,0.00030684,120]
[380349993,1755700188960,-1345.62,0.00030684,120]
[380349994,1755700189001,-400.0,0.00030684,120]
[380349995,1755700189042,-2005.04,0.00030684,120]
[380349996,1755700189082,-400.0,0.00030684,120]
[380349997,1755700189127,-1429.3,0.00030684,120]
[380349998,1755700189172,-1833.47,0.00030684,120]
[380349999,1755700189217,-1430.18,0.00030684,120]
[380350000,1755700189261,-400.0,0.00030684,120]
[380350001,1755700189304,-400.0,0.00030684,120]
[380350002,1755700189350,-400.0,0.00030684,120]
[380350003,1755700189393,-451.95,0.00030684,120]
[380350004,1755700189439,-400.0,0.00030684,120]
[380350005,1755700189485,-1965.19,0.00030684,120]
[380350006,1755700189529,-400.0,0.00030684,120]
[380350007,1755700189580,-400.0,0.00030684,120]
[380350008,1755700189624,-1775.23,0.00030684,120]
[380350009,1755700189669,-400.0,0.00030684,120]
[380350010,1755700189711,-2149.65,0.00030684,120]
[380350011,1755700189754,-1318.6,0.00030684,120]
[380350012,1755700189799,-400.0,0.00030684,120]
[380350013,1755700190200,-529.75,0.00030684,120]
[380350014,1755700190247,-1078.84,0.00030684,120]
[380350015,1755700190289,-1324.97,0.00030684,120]
[380350016,1755700190332,-400.0,0.00030684,120]
[380350017,1755700190375,-1907.19,0.00030684,120]